bitfinex-derivatives/quotes_SOLF0:USTF0_20260304
["timestamp","ask_amount","ask_price","bid_price","bid_amount"]
[1772645340840,8.52364178,91.159,91.12,3.46873826]
[1772645341043,8.52364178,91.158,91.111,10.58306716]
[1772645341339,8.52364178,91.157,91.111,10.58306716]
[1772645341540,3.46873826,91.17,91.121,10.58306716]
[1772645341835,3.46873826,91.16,91.121,10.58306716]
[1772645342441,3.46873826,91.17,91.121,10.58306716]
[1772645343338,3.46873826,91.17,91.122,9.873]
[1772645343540,3.46873826,91.15,91.059,10.58306716]
[1772645343736,3.46873826,91.15,91.1,3.46873826]
[1772645343941,3.46873826,91.15,91.101,10.58306716]
[1772645344140,3.46873826,91.13,91.085,10.58306716]
[1772645344442,3.46873826,91.09,91.041,10.58306716]
[1772645344645,3.46873826,91.1,91.051,10.58306716]
[1772645344938,3.46873826,91.09,91.051,10.58306716]
[1772645345139,11.4566,91.152,91.081,10.58306716]
[1772645345339,11.4566,91.151,91.101,10.58306716]
[1772645345536,3.46873826,91.14,91.101,10.58306716]
[1772645345942,3.46873826,91.15,91.101,10.58306716]
[1772645346239,3.46873826,91.14,91.09,3.46873826]
[1772645346545,3.46873826,91.14,91.083,10.58306716]
[1772645346745,3.46873826,91.14,91.09,3.46873826]
[1772645347042,3.46873826,91.14,91.09,14.05180542]
[1772645347242,3.46873826,91.14,91.091,10.58306716]
[1772645347444,3.46873826,91.14,91.091,20.45906716]
[1772645347644,3.46873826,91.14,91.092,10.58306716]
[1772645347843,158.58030301,91.613,91.031,153.738]
[1772645347844,3.46873826,91.16,91.11,3.46873826]
[1772645348045,3.46873826,91.16,91.111,20.45706716]
[1772645348542,21.3246,91.167,91.111,10.58306716]
[1772645348852,11.4566,91.166,91.111,10.58306716]
[1772645349045,9.869,91.163,91.111,10.58306716]
[1772645349243,11.4566,91.166,91.111,10.58306716]
[1772645349445,11.4566,91.159,91.094,10.58306716]
[1772645350147,9.869,91.154,91.097,10.58306716]
[1772645351449,11.4566,91.159,91.097,10.58306716]
[1772645352345,9.869,91.157,91.097,10.58306716]
[1772645352538,11.4566,91.156,91.097,10.58306716]
[1772645353644,11.4566,91.156,91.099,10.58306716]
[1772645355542,11.4566,91.153,91.099,10.58306716]
[1772645356252,11.4566,91.15,91.083,20.46006716]
[1772645356445,11.4566,91.15,91.084,10.58306716]
[1772645357249,11.4566,91.148,91.084,10.58306716]
[1772645357451,9.87,91.145,91.084,10.58306716]
[1772645357646,11.4566,91.144,91.084,10.58306716]
[1772645358150,11.4566,91.142,91.084,10.58306716]
[1772645358547,11.52816389,91.141,91.084,10.58306716]
[1772645358745,11.52816389,91.135,91.084,10.58306716]
[1772645359254,11.52816389,91.135,91.073,9.878]
[1772645359652,11.52816389,91.133,91.073,9.878]
[1772645359854,11.52816389,91.132,91.073,9.878]
[1772645360053,11.52816389,91.132,91.073,21.36652596]
[1772645360254,21.40016389,91.132,91.075,21.36652596]
[1772645360454,8.4622904,91.131,91.075,21.36652596]
[1772645360655,21.40016389,91.132,91.075,21.36652596]
[1772645360951,21.40016389,91.132,91.077,21.36652596]
[1772645361958,11.52816389,91.149,91.085,11.48852596]
[1772645362258,8.4587114,91.148,91.085,11.48852596]
[1772645362661,11.52816389,91.149,91.085,11.48852596]
[1772645363356,9.87,91.147,91.096,9.876]
[1772645363551,11.52816389,91.146,91.085,11.48852596]
[1772645363758,11.52816389,91.146,90.99,187.10262207]
[1772645363759,11.52816389,91.139,91.068,11.48852596]
[1772645363957,11.52816389,91.137,91.068,11.48852596]
[1772645364157,9.873,91.124,91.068,11.48852596]
[1772645364457,11.52816389,91.123,91.042,11.48852596]
[1772645364656,21.40216389,91.11,91.052,9.88]
[1772645365048,21.40216389,91.11,91.052,20.95566631]
[1772645365253,21.40216389,91.11,91.055,9.88]
[1772645365450,13.49126727,91.157,91.043,55.0]
[1772645365451,7.42622109,91.14,91.056,11.07566631]
[1772645365650,11.46301216,91.139,91.056,11.07566631]
[1772645365955,11.46301216,91.138,91.073,11.07566631]
[1772645366158,8.1274085,91.139,91.073,11.07566631]
[1772645366357,11.46301216,91.152,91.09,20.95166631]
[1772645366552,11.46301216,91.151,91.091,11.07566631]
[1772645367362,9.87,91.146,91.091,11.07566631]
[1772645367559,11.46301216,91.145,91.091,11.07566631]
[1772645368356,11.46301216,91.145,91.095,9.876]
[1772645368663,3.46736216,91.12,91.071,11.07566631]
[1772645368863,3.46736216,91.12,91.072,11.07566631]
[1772645369761,3.46736216,91.13,91.08,3.46736216]
[1772645370562,3.46736216,91.13,91.077,11.07566631]
[1772645370867,3.46736216,91.13,91.08,14.54302847]
[1772645371073,3.46736216,91.12,91.071,55.0]
[1772645371461,3.46736216,91.11,91.071,55.0]
[1772645372165,3.46736216,91.12,91.071,55.0]
[1772645372360,14.93037432,91.13,91.072,11.07566631]
[1772645372568,11.46301216,91.13,91.081,11.07566631]
[1772645373272,14.93037432,91.13,91.083,11.07566631]
[1772645374569,13.49126727,91.194,91.091,11.07566631]
[1772645374570,3.46736216,91.14,91.091,11.07566631]
[1772645375475,11.46301216,91.167,91.101,11.07566631]
[1772645375679,14.93037432,91.18,91.12,14.54302847]
[1772645375972,8.13498633,91.185,91.131,11.07566631]
[1772645376177,3.46736216,91.18,91.131,11.07566631]
[1772645376577,11.46301216,91.195,91.131,20.94766631]
[1772645376778,3.46736216,91.18,91.131,11.07566631]
[1772645377179,3.46736216,91.17,91.131,11.07566631]
[1772645378377,3.46736216,91.18,91.131,11.07566631]
[1772645378679,8.13498633,91.188,91.131,11.07566631]
[1772645378880,9.866,91.19,91.132,20.94766631]
[1772645379579,21.32901216,91.19,91.132,20.94766631]
[1772645379778,21.32901216,91.19,91.136,11.07566631]
[1772645380479,11.46301216,91.19,91.138,11.07566631]
[1772645380875,11.46301216,91.19,91.139,9.871]
[1772645381078,11.46301216,91.189,91.111,11.07566631]
[1772645381278,11.46301216,91.188,91.111,11.07566631]
[1772645381481,7.42293936,91.19,91.058,55.0]
[1772645381482,11.46301216,91.169,91.091,11.07566631]
[1772645381679,11.46301216,91.169,91.102,11.07566631]
[1772645382480,11.46301216,91.159,91.102,11.07566631]
[1772645383279,9.869,91.158,91.103,9.875]
[1772645383483,11.46301216,91.157,91.102,11.07566631]
[1772645385082,11.46301216,91.145,91.086,11.07566631]
[1772645385793,8.12645845,91.169,91.086,11.07566631]
[1772645385794,11.46301216,91.135,91.086,11.07566631]
[1772645386085,11.46301216,91.135,91.075,9.878]
[1772645386883,11.46301216,91.135,91.082,9.877]
[1772645387090,11.46301216,91.135,91.083,11.07566631]
[1772645388288,9.872,91.13,91.083,11.07566631]
[1772645389089,10.73612695,91.125,91.069,9.879]
[1772645390089,10.73612695,91.125,91.075,9.878]
[1772645390691,20.60712695,91.141,91.076,11.43743033]
[1772645390887,10.73612695,91.141,91.089,11.43743033]
[1772645391085,9.871,91.14,91.089,11.43743033]
[1772645392093,9.871,91.14,91.09,9.876]
[1772645392787,10.73612695,91.141,91.09,9.876]
[1772645393490,9.871,91.14,91.09,9.876]
[1772645394188,9.872,91.134,91.089,11.43743033]
[1772645394385,20.60812695,91.134,91.089,11.43743033]
[1772645394691,10.73612695,91.134,91.089,11.43743033]
[1772645396384,10.73612695,91.134,91.089,21.31343033]
[1772645397494,10.73612695,91.134,91.089,11.43743033]
[1772645397995,9.872,91.133,91.089,11.43743033]
[1772645398595,3.46784989,91.13,91.089,11.43743033]
[1772645399191,3.46784989,91.14,91.092,11.43743033]
[1772645399596,10.73612695,91.129,91.077,11.43743033]
[1772645400393,3.46784989,91.14,91.084,11.43743033]
[1772645400598,3.46784989,91.14,91.042,20.47439554]
[1772645400599,10.73612695,91.172,91.121,11.43743033]
[1772645400789,3.46784989,91.17,91.121,11.43743033]
[1772645400993,3.46784989,91.15,91.091,11.43743033]
[1772645401391,3.46784989,91.15,91.101,9.875]
[1772645401999,3.46784989,91.14,91.091,11.43743033]
[1772645402497,14.20397684,91.15,91.091,11.43743033]
[1772645403299,9.87,91.148,91.093,11.43743033]
[1772645404395,10.73612695,91.149,91.095,11.43743033]
[1772645404603,10.73612695,91.149,91.1,3.46784989]
[1772645404794,10.73612695,91.149,91.095,11.43743033]
[1772645405198,10.73612695,91.149,91.101,11.43743033]
[1772645405397,3.46784989,91.18,91.121,11.43743033]
[1772645406400,3.46784989,91.18,91.123,9.873]
[1772645406697,3.46784989,91.18,91.124,11.43743033]
[1772645407100,10.73612695,91.197,91.14,3.46784989]
[1772645407300,10.73612695,91.197,91.141,11.43743033]
[1772645407502,10.73612695,91.189,91.141,11.43743033]
[1772645407696,20.60212695,91.189,91.141,11.43743033]
[1772645407901,10.73612695,91.189,91.141,11.43743033]
[1772645408802,10.73612695,91.204,91.152,9.87]
[1772645409098,3.46784989,91.22,91.171,11.43743033]
[1772645409301,14.20397684,91.21,91.151,11.43743033]
[1772645409499,14.20397684,91.21,91.16,3.46784989]
[1772645410406,14.20397684,91.21,91.162,9.868]
[1772645410602,3.46784989,91.2,91.151,11.43743033]
[1772645410803,10.73612695,91.209,91.16,3.46784989]
[1772645411004,10.73612695,91.225,91.17,3.46784989]
[1772645411296,3.46784989,91.22,91.161,11.43743033]
[1772645411496,3.46784989,91.21,91.161,11.43743033]
[1772645411701,10.73612695,91.209,91.161,11.43743033]
[1772645412699,10.16621911,91.25,91.171,11.43743033]
[1772645413000,10.16621911,91.25,91.099,174.07667818]
[1772645413001,10.73612695,91.283,91.23,3.46784989]
[1772645413401,3.46784989,91.26,91.21,3.46784989]
[1772645413602,10.73612695,91.269,91.212,11.43743033]
[1772645413803,10.73612695,91.269,91.22,3.46784989]
[1772645414306,3.46784989,91.26,91.212,11.43743033]
[1772645414501,10.73612695,91.269,91.212,11.43743033]
[1772645414900,9.855,91.288,91.212,21.30043033]
[1772645415100,7.40946951,91.29,91.213,11.43743033]
[1772645415101,10.73612695,91.287,91.213,11.43743033]
[1772645415801,10.73612695,91.284,91.213,11.43743033]
[1772645416503,10.73612695,91.282,91.216,21.30043033]
[1772645416802,10.73612695,91.282,91.217,11.43743033]
[1772645417107,10.73612695,91.3,91.217,11.43743033]
[1772645417508,10.73612695,91.289,91.217,11.43743033]
[1772645417907,10.73612695,91.277,91.217,11.43743033]
[1772645418204,10.73612695,91.277,91.201,11.43743033]
[1772645418409,10.87190948,91.269,91.201,11.43743033]
[1772645418909,10.87190948,91.266,91.201,11.43743033]
[1772645419707,8.65789457,91.309,91.201,11.43743033]
[1772645419708,10.87190948,91.284,91.201,11.43743033]
[1772645420208,10.87190948,91.284,91.201,11.32118281]
[1772645420712,10.87190948,91.269,91.201,11.32118281]
[1772645421104,10.87190948,91.269,91.185,11.32118281]
[1772645421809,10.87190948,91.258,91.185,11.32118281]
[1772645422011,10.87190948,91.249,91.151,11.32118281]
[1772645422612,7.40946951,91.23,91.151,11.32118281]
[1772645422806,10.87190948,91.229,91.151,11.32118281]
[1772645423013,10.87190948,91.249,91.161,11.32118281]
[1772645423213,10.87190948,91.249,91.178,11.32118281]
[1772645423412,10.87190948,91.249,91.181,11.32118281]
[1772645424514,10.87190948,91.235,91.164,11.32118281]
[1772645425012,10.87190948,91.229,91.164,11.32118281]
[1772645426115,7.40946951,91.25,91.101,11.45821676]
[1772645426116,7.40946951,91.19,91.101,11.45821676]
[1772645426322,11.74002408,91.189,91.101,11.45821676]
[1772645426811,11.74002408,91.186,91.109,11.45821676]
[1772645428110,11.74002408,91.184,91.11,21.33321676]
[1772645428314,11.74002408,91.184,91.111,11.45821676]
[1772645428714,11.74002408,91.18,91.117,9.874]
[1772645428915,11.74002408,91.18,91.111,11.45821676]
[1772645429111,11.74002408,91.197,91.111,11.45821676]
[1772645429313,11.74002408,91.197,91.149,9.871]
[1772645430112,11.74002408,91.197,91.149,21.32921676]
[1772645430315,11.74002408,91.235,91.154,11.45821676]
[1772645430913,11.74002408,91.254,91.177,11.45821676]
[1772645431116,11.74002408,91.254,91.18,7.40946951]
[1772645431416,11.74002408,91.254,91.181,11.45821676]
[1772645431814,7.40946951,91.27,91.209,9.864]
[1772645432016,19.14949359,91.27,91.209,9.864]
[1772645432317,11.74002408,91.248,91.182,9.867]
[1772645432620,11.74002408,91.248,91.163,11.45821676]
[1772645433119,11.74002408,91.242,91.181,9.867]
[1772645433912,11.74002408,91.242,91.189,9.867]
[1772645434612,11.74002408,91.303,91.211,11.45821676]
[1772645434818,11.74002408,91.303,91.231,11.45821676]
[1772645435123,11.74002408,91.322,91.231,11.45821676]
[1772645435321,11.74002408,91.299,91.169,11.45821676]
[1772645435525,11.74002408,91.299,91.23,11.45821676]
[1772645436220,11.74002408,91.279,91.201,11.45821676]
[1772645437114,11.74002408,91.279,91.214,11.45821676]
[1772645437515,11.74002408,91.289,91.214,11.45821676]
[1772645437824,11.74002408,91.277,91.214,11.45821676]
[1772645438018,11.74002408,91.269,91.194,11.45821676]
[1772645438218,11.74002408,91.269,91.204,9.865]
[1772645439729,11.74002408,91.288,91.205,11.45821676]
[1772645440221,11.74002408,91.308,91.238,11.45821676]
[1772645440621,11.74002408,91.308,91.219,11.45821676]
[1772645440814,11.74002408,91.306,91.219,11.45821676]
[1772645441021,11.74002408,91.289,91.219,11.45821676]
[1772645441219,11.74002408,91.289,91.191,11.45821676]
[1772645441522,11.74002408,91.271,91.201,11.45821676]
[1772645442525,11.74002408,91.269,91.201,11.45821676]
[1772645443221,9.858,91.267,91.201,11.45821676]
[1772645443426,11.74002408,91.269,91.201,11.45821676]
[1772645444825,21.59802408,91.267,91.202,9.865]
[1772645445219,11.74002408,91.266,91.204,9.865]
[1772645445419,11.74002408,91.266,91.201,11.45821676]
[1772645445624,11.74002408,91.266,91.132,20.45267818]
[1772645445625,11.74002408,91.259,91.171,11.45821676]
[1772645446425,11.74002408,91.237,91.14,7.40946951]
[1772645446724,7.40946951,91.26,91.14,7.40946951]
[1772645446725,11.74002408,91.219,91.141,11.45821676]
[1772645446920,11.74002408,91.207,91.141,11.45821676]
[1772645447127,7.40946951,91.22,91.141,11.45821676]
[1772645447433,21.60102408,91.24,91.171,9.869]
[1772645447633,11.74002408,91.229,91.151,11.45821676]
[1772645448631,12.07324328,91.223,91.151,21.32921676]
[1772645449329,9.864,91.219,91.159,9.87]
[1772645449732,12.07324328,91.223,91.159,9.87]
[1772645450032,12.07324328,91.245,91.152,11.5970072]
[1772645450531,12.07324328,91.245,91.187,9.867]
[1772645450826,12.07324328,91.267,91.181,11.5970072]
[1772645451031,12.07324328,91.263,91.181,11.5970072]
[1772645451625,12.07324328,91.263,91.18,7.40946951]
[1772645451626,12.07324328,91.263,91.196,11.5970072]
[1772645452428,12.07324328,91.259,91.173,11.5970072]
[1772645453632,12.07324328,91.252,91.188,9.867]
[1772645453930,12.07324328,91.252,91.173,11.5970072]
[1772645454336,9.861,91.241,91.187,9.867]
[1772645455125,12.07324328,91.252,91.187,9.867]
[1772645456524,12.07324328,91.241,91.178,9.868]
[1772645456727,12.07324328,91.241,91.173,11.5970072]
[1772645457123,12.07324328,91.237,91.173,11.5970072]
[1772645458230,12.07324328,91.237,91.154,11.5970072]
[1772645458631,12.07324328,91.218,91.155,9.87]
[1772645458833,12.07324328,91.218,91.154,11.5970072]
[1772645459027,9.864,91.217,91.163,9.869]
[1772645459235,12.07324328,91.216,91.154,11.5970072]
[1772645459627,9.864,91.215,91.155,9.87]
[1772645459931,12.07324328,91.216,91.121,11.5970072]
[1772645460336,12.07324328,91.216,91.154,9.87]
[1772645460934,12.07324328,91.216,91.145,11.5970072]
[1772645460935,12.07324328,91.236,91.155,11.5970072]
[1772645461531,12.07324328,91.224,91.168,9.869]
[1772645462132,12.07324328,91.213,91.137,11.5970072]
[1772645462433,12.07324328,91.213,91.103,19.752]
[1772645462434,10.06497605,91.252,91.191,11.5970072]
[1772645462632,12.07324328,91.259,91.191,11.5970072]
[1772645462832,8.57755519,91.288,91.191,11.5970072]
[1772645463037,12.07324328,91.287,91.191,11.5970072]
[1772645463236,12.07324328,91.287,91.226,9.863]
[1772645463436,12.07324328,91.287,91.211,11.5970072]
[1772645463940,9.856,91.286,91.226,9.863]
[1772645464150,12.07324328,91.285,91.226,9.863]
[1772645464433,12.07324328,91.282,91.19,11.5970072]
[1772645465542,9.858,91.265,91.21,9.864]
[1772645465737,12.07324328,91.264,91.21,9.864]
[1772645466138,12.07324328,91.262,91.199,9.866]
[1772645466338,12.07324328,91.262,91.19,11.5970072]
[1772645467140,12.07324328,91.262,91.207,9.865]
[1772645467641,21.93224328,91.258,91.198,9.866]
[1772645468143,12.07324328,91.254,91.19,11.5970072]
[1772645468442,13.42514603,91.289,91.16,7.41363099]
[1772645468443,12.07324328,91.249,91.161,11.5970072]
[1772645468637,12.07324328,91.248,91.161,11.5970072]
[1772645468834,12.07324328,91.247,91.161,11.5970072]
[1772645469238,8.26113526,91.249,91.161,11.5970072]
[1772645469434,12.07324328,91.264,91.187,11.5970072]
[1772645469737,12.07324328,91.249,91.161,11.5970072]
[1772645469937,12.07324328,91.248,91.161,11.5970072]
[1772645470346,9.862,91.232,91.161,11.5970072]
[1772645470546,12.07324328,91.247,91.161,11.5970072]
[1772645471446,12.07324328,91.242,91.181,9.868]
[1772645472040,12.07324328,91.242,91.16,7.41363099]
[1772645472041,12.07324328,91.26,91.179,11.5970072]
[1772645472242,8.25812818,91.269,91.181,11.5970072]
[1772645472442,12.07324328,91.279,91.201,11.5970072]
[1772645472443,8.25812818,91.277,91.201,11.5970072]
[1772645472645,8.25812818,91.278,91.201,11.5970072]
[1772645472950,12.07324328,91.279,91.23,9.862]
[1772645473137,12.07324328,91.285,91.201,11.5970072]
[1772645473338,12.07324328,91.283,91.201,11.5970072]
[1772645473544,12.07324328,91.282,91.201,11.5970072]
[1772645473838,12.07324328,91.281,91.201,11.5970072]
[1772645474245,7.41363099,91.29,91.201,11.5970072]
[1772645474246,12.07324328,91.279,91.201,11.5970072]
[1772645474446,9.858,91.268,91.21,9.864]
[1772645475448,9.86,91.251,91.191,9.866]
[1772645475650,12.07324328,91.266,91.191,11.5970072]
[1772645476450,12.07324328,91.266,91.219,9.863]
[1772645476647,12.07324328,91.266,91.191,11.5970072]
[1772645477243,13.42514603,91.308,91.191,11.5970072]
[1772645477443,8.27769233,91.315,91.23,7.41363099]
[1772645477642,12.46634577,91.327,91.24,7.41363099]
[1772645477847,12.46634577,91.319,91.24,7.41363099]
[1772645478047,12.46634577,91.319,91.257,9.859]
[1772645478245,12.46634577,91.319,91.24,7.41363099]
[1772645479248,12.46634577,91.319,91.274,9.857]
[1772645480645,12.31130982,91.339,91.24,7.41363099]
[1772645480851,12.31130982,91.339,91.241,55.0]
[1772645481052,12.31124122,91.338,91.241,55.0]
[1772645481252,12.31124122,91.338,91.277,9.857]
[1772645481452,12.31124122,91.338,91.24,7.41363099]
[1772645481752,12.31124122,91.336,91.24,7.41363099]
[1772645482842,12.31124122,91.336,91.26,7.41363099]
[1772645483048,12.31124122,91.336,91.261,55.0]
[1772645483247,12.31124122,91.336,91.25,7.41363099]
[1772645483248,12.31124122,91.336,91.276,9.857]
[1772645483444,12.31124122,91.336,91.25,7.41363099]
[1772645484958,12.31124122,91.336,91.284,9.856]
[1772645485250,12.31124122,91.336,91.25,7.41363099]
[1772645485648,12.31124122,91.336,91.281,9.857]
[1772645486451,12.31124122,91.336,91.289,9.856]
[1772645487050,12.31124122,91.336,91.273,9.858]
[1772645487255,12.31124122,91.336,91.25,7.41363099]
[1772645487856,12.31124122,91.336,91.28,9.857]
[1772645488058,12.31124122,91.336,91.25,7.41363099]
[1772645488558,12.33714803,91.369,91.27,7.41363099]
[1772645489054,10.80143276,91.398,91.29,9.856]
[1772645489055,12.33714803,91.359,91.29,9.856]
[1772645489254,12.33714803,91.359,91.27,7.41363099]
[1772645489755,12.3371082,91.356,91.27,7.41363099]
[1772645490759,12.39066689,91.352,91.296,9.855]
[1772645491159,12.39066689,91.352,91.27,7.41363099]
[1772645491862,12.39067101,91.349,91.27,7.41363099]
[1772645492861,12.39067101,91.349,91.29,9.856]
[1772645493458,12.37301603,91.335,91.28,9.857]
[1772645493656,12.37301603,91.335,91.25,7.41363099]
[1772645493959,12.37301603,91.335,91.251,55.0]
[1772645494256,12.37301603,91.335,91.23,7.41363099]
[1772645495260,12.37167082,91.325,91.267,9.858]
[1772645495664,12.37167082,91.325,91.23,7.41363099]
[1772645495864,9.853,91.313,91.257,9.859]
[1772645496364,9.854,91.311,91.257,9.859]
[1772645497159,12.5121512,91.312,91.23,7.41363099]
[1772645497365,12.51224581,91.339,91.23,7.41363099]
[1772645497760,22.36424581,91.328,91.274,9.857]
[1772645497965,12.51224581,91.327,91.274,9.857]
[1772645498265,12.51224581,91.327,91.233,19.724]
[1772645498465,12.50797454,91.317,91.22,7.41363099]
[1772645499870,12.50797454,91.317,91.182,153.5]
[1772645499871,12.5080629,91.33,91.24,7.41363099]
[1772645500765,9.853,91.315,91.258,9.859]
[1772645501465,12.54614435,91.312,91.248,9.86]
[1772645502261,12.54614435,91.312,91.256,9.859]
[1772645502970,9.854,91.31,91.256,9.859]
[1772645503467,12.54614435,91.312,91.263,9.859]
[1772645503862,12.54614435,91.312,91.241,55.0]
[1772645504171,12.52923857,91.339,91.241,55.0]
[1772645504471,12.52923857,91.339,91.24,7.41363099]
[1772645504872,27.10863099,91.37,91.202,153.466]
[1772645504873,12.54463195,91.335,91.26,7.41363099]
[1772645505077,7.41363099,91.37,91.281,11.5629295]
[1772645505372,7.41363099,91.39,91.32,9.852]
[1772645505575,7.41363099,91.39,91.303,11.5629295]
[1772645505764,17.25863099,91.39,91.328,9.852]
[1772645505964,7.41363099,91.39,91.328,9.852]
[1772645506368,7.41363099,91.41,91.336,9.851]
[1772645506566,7.41363099,91.41,91.322,11.5629295]
[1772645506773,7.41363099,91.43,91.341,11.5629295]
[1772645507079,11.42973489,91.42,91.362,9.848]
[1772645507876,9.841,91.427,91.365,9.848]
[1772645508073,9.841,91.427,91.366,11.5629295]
[1772645508371,0.00043276,91.398,91.368,9.847]
[1772645508567,0.00043276,91.398,91.347,11.68277961]
[1772645508770,12.04252773,91.398,91.321,11.68277961]
[1772645508972,12.04209497,91.383,91.321,11.68277961]
[1772645509578,12.04209497,91.379,91.3,11.70740422]
[1772645509882,12.04209497,91.379,91.301,11.73236258]
[1772645510269,12.04209497,91.379,91.329,9.851]
[1772645510871,12.04209497,91.379,91.32,21.34265437]
[1772645511281,12.04209497,91.379,91.32,11.49065437]
[1772645513278,12.04209497,91.379,91.324,9.852]
[1772645514577,17.23729692,91.39,91.33,9.851]
[1772645514781,12.04252773,91.398,91.325,11.00726025]
[1772645515181,12.04209497,91.387,91.325,11.00726025]
[1772645515383,12.04209497,91.387,91.269,184.60671915]
[1772645515384,12.04209497,91.369,91.306,11.02904951]
[1772645515881,12.04209497,91.369,91.314,9.853]
[1772645516587,21.88909497,91.367,91.306,11.02904951]
[1772645516884,12.04209497,91.366,91.306,11.02904951]
[1772645517484,12.04209497,91.366,91.308,9.854]
[1772645517980,12.04209497,91.366,91.298,9.855]
[1772645518186,12.04209497,91.366,91.287,11.08852152]
[1772645518377,12.04209497,91.348,91.287,11.08852152]
[1772645519085,12.04209497,91.345,91.289,9.856]
[1772645519286,12.04209497,91.329,91.268,11.09968797]
[1772645519482,12.04209497,91.329,91.25,11.09968797]
[1772645519678,7.39229692,91.33,91.25,11.09968797]
[1772645519679,12.04209497,91.321,91.25,11.09968797]
[1772645520380,12.04209497,91.318,91.25,11.09968797]
[1772645521079,21.89609497,91.311,91.251,9.86]
[1772645521384,12.04209497,91.31,91.251,9.86]
[1772645521683,12.04209497,91.328,91.25,11.09968797]
[1772645522086,12.04209497,91.317,91.252,9.86]
[1772645522281,12.04209497,91.339,91.254,11.14636181]
[1772645522486,12.04209497,91.339,91.261,11.14636181]
[1772645522683,12.04209497,91.364,91.287,11.14636181]
[1772645522988,12.04209497,91.364,91.301,11.16789348]
[1772645523985,12.04209497,91.388,91.301,11.16789348]
[1772645524182,12.04209497,91.388,91.303,11.49576216]
[1772645524485,8.15867958,91.389,91.303,11.49576216]
[1772645524486,12.04209497,91.375,91.313,9.853]
[1772645525388,9.847,91.373,91.313,9.853]
[1772645525684,12.04209497,91.369,91.283,11.51539401]
[1772645525883,12.04209497,91.368,91.283,11.51539401]
[1772645526583,9.847,91.367,91.283,11.51539401]
[1772645526888,12.04209497,91.366,91.283,11.51539401]
[1772645527090,12.04209497,91.36,91.283,11.51539401]
[1772645528390,12.04209497,91.36,91.298,9.855]
[1772645528985,12.04209497,91.36,91.283,11.51539401]
[1772645528986,12.04209497,91.359,91.283,11.51539401]
[1772645529487,12.04209497,91.359,91.313,9.853]
[1772645529794,12.04209497,91.359,91.283,11.51539401]
[1772645530193,12.04209497,91.359,91.312,9.853]
[1772645530893,12.04209497,91.359,91.303,9.854]
[1772645531292,12.04209497,91.359,91.283,11.51539401]
[1772645531494,12.04209497,91.359,91.261,11.91386875]
[1772645531697,12.04209497,91.358,91.261,11.91386875]
[1772645531992,12.04209497,91.351,91.261,11.91386875]
[1772645532388,12.04209497,91.351,91.296,9.855]
[1772645532795,12.04209497,91.351,91.284,12.0498268]
[1772645533595,12.04209497,91.351,91.296,9.855]
[1772645533792,7.39229692,91.36,91.284,12.0498268]
[1772645533793,12.04209497,91.349,91.284,12.0498268]
[1772645534295,12.04209497,91.349,91.292,9.855]
[1772645534595,12.04209497,91.347,91.284,12.0498268]
[1772645535789,20.203921,91.369,91.284,12.0498268]
[1772645536194,12.04209497,91.369,91.284,12.0498268]
[1772645536393,12.04209497,91.369,91.301,12.11381841]
[1772645536802,12.04209497,91.358,91.3,9.855]
[1772645537103,12.04209497,91.358,91.282,12.13218134]
[1772645537698,9.847,91.375,91.282,12.13218134]
[1772645537897,9.847,91.375,91.301,12.14930142]
[1772645538096,7.39229692,91.39,91.303,12.27961653]
[1772645538296,12.04209497,91.396,91.321,12.27961653]
[1772645539303,12.04209497,91.396,91.343,9.85]
[1772645539902,12.04209497,91.396,91.334,9.851]
[1772645540300,12.04209497,91.396,91.321,12.27961653]
[1772645540499,12.20789237,91.386,91.326,9.852]
[1772645541407,12.20789237,91.386,91.317,9.853]
[1772645541999,12.20789237,91.368,91.317,9.853]
[1772645542605,12.20789237,91.366,91.309,9.854]
[1772645543409,22.05589237,91.362,91.309,9.854]
[1772645543609,12.20789237,91.362,91.309,9.854]
[1772645544609,12.20789237,91.362,91.303,9.854]
[1772645544798,12.20789237,91.362,91.302,12.34926124]
[1772645544999,7.39229692,91.37,91.183,46.38005039]
[1772645545000,12.20789237,91.349,91.261,12.48077718]
[1772645545404,7.39229692,91.37,91.241,11.9697345]
[1772645545405,12.57623711,91.329,91.241,11.9697345]
[1772645546303,12.57623711,91.329,91.25,7.39229692]
[1772645546505,12.57623711,91.329,91.251,11.9697345]
[1772645546801,12.57623711,91.329,91.274,9.857]
[1772645547604,12.57623711,91.329,91.265,9.858]
[1772645548008,9.852,91.328,91.265,9.858]
[1772645548209,12.57623711,91.327,91.265,9.858]
[1772645548608,12.57623711,91.327,91.255,9.86]
[1772645548811,12.57623711,91.327,91.203,20.35873017]